[Event "Tournoi de MI Clichy 92 2022"]
[Site "Clichy, France"]
[Date "2022.02.21"]
[Round "2.2"]
[White "Soham Das"]
[Black "Droin, Augustin"]
[Result "0-1"]
[TimeControl "1H40 40 moves plus 30 minutes + 30 seconds from move one"]
[WhiteElo "2378"]
[BlackElo "2365"]

1. d4 {[%clk 01:25:10]} {[%emt 00:05:50]} d5 {[%clk 01:30:56]} {[%emt
00:00:05]} 2. Bf4 {[%clk 01:25:35]} {[%emt 00:00:05]} c5 {[%clk 01:31:16]}
{[%emt 00:00:10]} 3. e3 {[%clk 01:25:59]} {[%emt 00:00:06]} Nc6 {[%clk
01:31:43]} {[%emt 00:00:03]} 4. Nc3 {[%clk 01:26:17]} {[%emt 00:00:12]} cxd4
{[%clk 01:28:56]} {[%emt 00:03:16]} 5. exd4 {[%clk 01:24:55]} {[%emt 00:01:51]}
a6 {[%clk 01:29:18]} {[%emt 00:00:09]} 6. Nf3 {[%clk 01:21:08]} {[%emt
00:04:17]} Bg4 {[%clk 01:27:54]} {[%emt 00:01:54]} 7. Be2 {[%clk 01:21:29]}
{[%emt 00:00:09]} e6 {[%clk 01:27:04]} {[%emt 00:01:20]} 8. Ne5 {[%clk
01:11:42]} {[%emt 00:10:16]} Nxe5 {[%clk 01:17:50]} {[%emt 00:09:45]} 9. Bxe5
{[%clk 01:12:05]} {[%emt 00:00:07]} Bxe2 {[%clk 01:14:57]} {[%emt 00:03:23]} 10.
Nxe2 {[%clk 01:12:29]} {[%emt 00:00:06]} Ne7 {[%clk 01:14:56]} {[%emt
00:00:31]} 11. Nf4 {[%clk 00:42:05]} {[%emt 00:30:54]} Qa5+ {[%clk 01:01:27]}
{[%emt 00:13:59]} 12. c3 {[%clk 00:35:15]} {[%emt 00:07:20]} Nc6 {[%clk
00:58:48]} {[%emt 00:03:08]} 13. Qh5 {[%clk 00:25:07]} {[%emt 00:10:38]} Nxe5
{[%clk 00:53:59]} {[%emt 00:05:19]} 14. Qxe5 {[%clk 00:25:33]} {[%emt
00:00:03]} Qb5 {[%clk 00:50:37]} {[%emt 00:03:53]} 15. O-O-O {[%clk 00:20:47]}
{[%emt 00:05:15]} O-O-O {[%clk 00:50:05]} {[%emt 00:01:03]} 16. Nd3 {[%clk
00:19:26]} {[%emt 00:01:51]} Rd7 {[%clk 00:43:46]} {[%emt 00:06:50]} 17. Kb1
{[%clk 00:11:48]} {[%emt 00:08:07]} Rc7 {[%clk 00:39:16]} {[%emt 00:05:01]} 18.
Ka1 {[%clk 00:11:29]} {[%emt 00:00:48]} Qc4 {[%clk 00:35:16]} {[%emt 00:04:31]}
19. f4 {[%clk 00:10:13]} {[%emt 00:01:46]} a5 {[%clk 00:29:01]} {[%emt
00:06:45]} 20. f5 {[%clk 00:05:30]} {[%emt 00:05:13]} Rc6 {[%clk 00:29:20]}
{[%emt 00:00:12]} 21. fxe6 {[%clk 00:05:11]} {[%emt 00:00:49]} fxe6 {[%clk
00:29:47]} {[%emt 00:00:03]} 22. Qe3 {[%clk 00:03:28]} {[%emt 00:02:12]} Rb6
{[%clk 00:28:04]} {[%emt 00:02:13]} 23. Rhf1 {[%clk 00:03:12]} {[%emt
00:00:46]} a4 {[%clk 00:26:27]} {[%emt 00:02:08]} 24. Rc1 {[%clk 00:03:04]}
{[%emt 00:00:37]} Kb8 {[%clk 00:24:52]} {[%emt 00:02:04]} 25. Rf7 {[%clk
00:02:27]} {[%emt 00:01:07]} Bd6 {[%clk 00:23:38]} {[%emt 00:01:45]} 26. Nc5
{[%clk 00:01:44]} {[%emt 00:01:13]} Ka7 {[%clk 00:20:02]} {[%emt 00:04:06]} 27.
Qd3 {[%clk 00:00:46]} {[%emt 00:01:28]} Bxc5 {[%clk 00:18:42]} {[%emt
00:01:51]} 28. Qxc4 {[%clk 00:01:12]} {[%emt 00:00:04]} dxc4 {[%clk 00:19:08]}
{[%emt 00:00:03]} 29. dxc5 {[%clk 00:01:40]} {[%emt 00:00:02]} Rc6 {[%clk
00:19:34]} {[%emt 00:00:04]} 30. Rd1 {[%clk 00:00:59]} {[%emt 00:01:11]} Rxc5
{[%clk 00:19:51]} {[%emt 00:00:13]} 31. Rdd7 {[%clk 00:01:25]} {[%emt
00:00:03]} Rb5 {[%clk 00:20:18]} {[%emt 00:00:03]} 32. Rxg7 {[%clk 00:01:37]}
{[%emt 00:00:18]} a3 {[%clk 00:05:13]} {[%emt 00:15:35]} 33. bxa3 {[%clk
00:02:03]} {[%emt 00:00:04]} Rf8 {[%clk 00:04:57]} {[%emt 00:00:46]} 34. Rgf7
{[%clk 00:02:17]} {[%emt 00:00:16]} Rxf7 {[%clk 00:04:53]} {[%emt 00:00:34]} 35.
Rxf7 {[%clk 00:02:43]} {[%emt 00:00:04]} Rf5 {[%clk 00:05:21]} {[%emt
00:00:02]} 36. Rxf5 {[%clk 00:00:42]} {[%emt 00:02:31]} exf5 {[%clk 00:05:47]}
{[%emt 00:00:04]} 37. Kb2 {[%clk 00:00:36]} {[%emt 00:00:35]} Kb6 {[%clk
00:06:15]} {[%emt 00:00:02]} 38. a4 {[%clk 00:00:32]} {[%emt 00:00:35]} Ka5
{[%clk 00:06:41]} {[%emt 00:00:04]} 39. Ka3 {[%clk 00:00:55]} {[%emt 00:00:06]}
f4 {[%clk 00:06:30]} {[%emt 00:00:41]} 40. h3 {[%clk 00:00:50]} {[%emt
00:00:34]} h6 {[%clk 00:06:44]} {[%emt 00:00:17]} 41. h4 {[%clk 00:01:11]}
{[%emt 00:00:09]} h5 {[%clk 00:07:07]} {[%emt 00:00:07]} 42. Kb2 {[%clk
00:01:38]} {[%emt 00:00:03]} Kxa4 {[%clk 00:07:34]} {[%emt 00:00:03]} 43. Kc2
{[%clk 00:24:49]} {[%emt 00:07:18]} Kb5 {[%clk 00:33:27]} {[%emt 00:04:37]} 44.
Kb2 {[%clk 00:25:13]} {[%emt 00:00:06]} Kc5 {[%clk 00:31:31]} {[%emt 00:02:26]}
45. Ka3 {[%clk 00:24:26]} {[%emt 00:01:17]} b5 {[%clk 00:31:58]} {[%emt
00:00:03]} 46. Kb2 {[%clk 00:24:52]} {[%emt 00:00:03]} Kd5 {[%clk 00:32:18]}
{[%emt 00:00:10]} 47. Ka3 {[%clk 00:24:54]} {[%emt 00:00:28]} Ke4 {[%clk
00:31:37]} {[%emt 00:01:11]} 48. Kb4 {[%clk 00:25:20]} {[%emt 00:00:04]} Kd3
{[%clk 00:32:05]} {[%emt 00:00:02]} 49. Kxb5 {[%clk 00:16:16]} {[%emt
00:09:34]} Kxc3 {[%clk 00:32:32]} {[%emt 00:00:03]} 50. a4 {[%clk 00:16:44]}
{[%emt 00:00:03]} Kd4 {[%clk 00:32:59]} {[%emt 00:00:02]} 0-1

[ePGN "0.1;DGT LiveChess/2.2.5"]

[Event "Tournoi de MI Clichy 92 2022"]
[Site "Clichy, France"]
[Date "2022.02.21"]
[Round "3.5"]
[White "Droin, Augustin"]
[Black "Petrov, Martin"]
[Result "1/2-1/2"]
[TimeControl "1H40 40 moves plus 30 minutes + 30 seconds from move one"]
[WhiteElo "2365"]
[BlackElo "2547"]

1. e4 {[%clk 01:30:57]} {[%emt 00:00:02]} c5 {[%clk 01:30:31]} {[%emt
00:00:29]} 2. Nf3 {[%clk 01:31:24]} {[%emt 00:00:03]} d6 {[%clk 01:30:56]}
{[%emt 00:00:05]} 3. Bb5+ {[%clk 01:31:52]} {[%emt 00:00:03]} Nd7 {[%clk
01:30:32]} {[%emt 00:00:53]} 4. Ba4 {[%clk 01:31:16]} {[%emt 00:01:07]} Ngf6
{[%clk 01:29:45]} {[%emt 00:01:15]} 5. Qe2 {[%clk 01:31:29]} {[%emt 00:00:18]}
a6 {[%clk 01:26:34]} {[%emt 00:03:42]} 6. c4 {[%clk 01:30:27]} {[%emt
00:01:31]} g6 {[%clk 01:24:47]} {[%emt 00:02:16]} 7. Nc3 {[%clk 01:30:14]}
{[%emt 00:00:43]} Bg7 {[%clk 01:25:13]} {[%emt 00:00:04]} 8. O-O {[%clk
01:30:18]} {[%emt 00:00:26]} O-O {[%clk 01:25:38]} {[%emt 00:00:05]} 9. Bc2
{[%clk 01:29:29]} {[%emt 00:01:19]} Ng4 {[%clk 01:23:28]} {[%emt 00:02:40]} 10.
d3 {[%clk 01:23:35]} {[%emt 00:06:25]} Nde5 {[%clk 01:21:47]} {[%emt 00:02:10]}
11. Nxe5 {[%clk 01:23:28]} {[%emt 00:00:37]} Nxe5 {[%clk 01:22:12]} {[%emt
00:00:05]} 12. f4 {[%clk 01:22:56]} {[%emt 00:01:02]} Nc6 {[%clk 01:22:24]}
{[%emt 00:00:17]} 13. Be3 {[%clk 01:23:21]} {[%emt 00:00:06]} Nd4 {[%clk
01:21:41]} {[%emt 00:01:13]} 14. Qd2 {[%clk 01:23:09]} {[%emt 00:00:42]} b5
{[%clk 01:18:13]} {[%emt 00:03:58]} 15. Rae1 {[%clk 01:18:35]} {[%emt
00:05:04]} Rb8 {[%clk 01:15:32]} {[%emt 00:03:11]} 16. Bb1 {[%clk 01:12:25]}
{[%emt 00:06:40]} f5 {[%clk 01:08:15]} {[%emt 00:07:47]} 17. b3 {[%clk
01:05:34]} {[%emt 00:07:22]} b4 {[%clk 00:56:00]} {[%emt 00:12:45]} 18. Ne2
{[%clk 01:03:55]} {[%emt 00:02:09]} e5 {[%clk 00:56:19]} {[%emt 00:00:11]} 19.
fxe5 {[%clk 01:00:54]} {[%emt 00:03:31]} dxe5 {[%clk 00:56:16]} {[%emt
00:00:32]} 20. exf5 {[%clk 01:01:20]} {[%emt 00:00:05]} Bxf5 {[%clk 00:53:48]}
{[%emt 00:02:56]} 21. Ng3 {[%clk 00:59:05]} {[%emt 00:02:46]} Qd7 {[%clk
00:43:18]} {[%emt 00:11:01]} 22. Bh6 {[%clk 00:55:20]} {[%emt 00:04:15]} Rbe8
{[%clk 00:40:28]} {[%emt 00:03:19]} 23. Rf2 {[%clk 00:53:47]} {[%emt 00:02:03]}
Bxh6 {[%clk 00:30:06]} {[%emt 00:10:52]} 24. Qxh6 {[%clk 00:54:12]} {[%emt
00:00:05]} Qg7 {[%clk 00:30:34]} {[%emt 00:00:02]} 25. Qe3 {[%clk 00:54:17]}
{[%emt 00:00:24]} h5 {[%clk 00:30:22]} {[%emt 00:00:42]} 26. Bc2 {[%clk
00:48:50]} {[%emt 00:05:57]} h4 {[%clk 00:28:41]} {[%emt 00:02:10]} 27. Nf1
{[%clk 00:49:16]} {[%emt 00:00:04]} g5 {[%clk 00:27:46]} {[%emt 00:01:25]} 28.
Bd1 {[%clk 00:45:56]} {[%emt 00:03:50]} g4 {[%clk 00:27:28]} {[%emt 00:00:47]}
29. g3 {[%clk 00:46:00]} {[%emt 00:00:27]} e4 {[%clk 00:20:16]} {[%emt
00:07:42]} 30. dxe4 {[%clk 00:41:25]} {[%emt 00:05:03]} Rxe4 {[%clk 00:19:41]}
{[%emt 00:01:06]} 31. Qd2 {[%clk 00:40:02]} {[%emt 00:01:53]} Rd8 {[%clk
00:19:35]} {[%emt 00:00:35]} 32. Rxe4 {[%clk 00:37:06]} {[%emt 00:03:26]} Bxe4
{[%clk 00:19:54]} {[%emt 00:00:11]} 33. Qe3 {[%clk 00:27:37]} {[%emt 00:10:00]}
Bf3 {[%clk 00:20:16]} {[%emt 00:00:07]} 34. Bxf3 {[%clk 00:28:03]} {[%emt
00:00:04]} gxf3 {[%clk 00:18:17]} {[%emt 00:02:30]} 35. Kh1 {[%clk 00:26:00]}
{[%emt 00:02:33]} h3 {[%clk 00:11:25]} {[%emt 00:07:21]} 36. Nd2 {[%clk
00:22:57]} {[%emt 00:03:33]} Qg6 {[%clk 00:03:51]} {[%emt 00:08:04]} 37. Nxf3
{[%clk 00:16:36]} {[%emt 00:06:51]} Re8 {[%clk 00:04:17]} {[%emt 00:00:04]} 38.
Qc1 {[%clk 00:16:36]} {[%emt 00:00:30]} Rf8 {[%clk 00:00:57]} {[%emt 00:03:50]}
39. Nh4 {[%clk 00:10:11]} {[%emt 00:06:55]} Qe4+ {[%clk 00:01:20]} {[%emt
00:00:06]} 40. Kg1 {[%clk 00:10:39]} {[%emt 00:00:03]} Ne2+ {[%clk 00:00:31]}
{[%emt 00:01:19]} 41. Rxe2 {[%clk 00:11:00]} {[%emt 00:00:09]} Qxe2 {[%clk
00:00:45]} {[%emt 00:00:16]} 42. Qg5+ {[%clk 00:11:03]} {[%emt 00:00:27]} Kh7
{[%clk 00:22:51]} {[%emt 00:08:23]} 43. Qg6+ {[%clk 00:41:13]} {[%emt
00:00:21]} Kh8 {[%clk 00:23:18]} {[%emt 00:00:03]} 44. Qh6+ {[%clk 00:41:17]}
{[%emt 00:00:27]} Kg8 {[%clk 00:23:44]} {[%emt 00:00:04]} 45. Qg6+ {[%clk
00:41:39]} {[%emt 00:00:08]} Kh8 {[%clk 00:24:11]} {[%emt 00:00:03]} 46. Qh6+
{[%clk 00:42:05]} {[%emt 00:00:04]} Kg8 {[%clk 00:24:37]} {[%emt 00:00:04]} 47.
Qg6+ {[%emt 00:00:02]} 1/2-1/2

[Event "Tournoi de MI Clichy 92 2022"]
[Site "Clichy, France"]
[Date "2022.02.21"]
[Round "3.1"]
[White "Benmesbah, Natacha"]
[Black "Degardin, Sylvain"]
[Result "1-0"]
[TimeControl "1H40 40 moves plus 30 minutes + 30 seconds from move one"]
[WhiteElo "2221"]
[BlackElo "2288"]

1. e4 {[%clk 01:24:52]} {[%emt 00:06:07]} e5 {[%clk 01:30:25]} {[%emt
00:00:34]} 2. Nf3 {[%clk 01:24:09]} {[%emt 00:01:14]} Nc6 {[%clk 01:30:23]}
{[%emt 00:00:32]} 3. Bb5 {[%clk 01:23:02]} {[%emt 00:01:38]} a6 {[%clk
01:28:55]} {[%emt 00:01:57]} 4. Ba4 {[%clk 01:23:26]} {[%emt 00:00:07]} Nf6
{[%clk 01:25:06]} {[%emt 00:04:17]} 5. d3 {[%clk 01:23:30]} {[%emt 00:00:28]}
d6 {[%clk 01:23:03]} {[%emt 00:02:32]} 6. a3 {[%clk 01:11:56]} {[%emt
00:12:05]} g6 {[%clk 01:21:24]} {[%emt 00:02:07]} 7. Nc3 {[%clk 01:10:22]}
{[%emt 00:02:06]} Bg7 {[%clk 01:19:58]} {[%emt 00:01:53]} 8. h3 {[%clk
01:04:54]} {[%emt 00:06:00]} O-O {[%clk 01:18:52]} {[%emt 00:01:36]} 9. Bg5
{[%clk 01:03:07]} {[%emt 00:02:18]} h6 {[%clk 01:16:17]} {[%emt 00:03:04]} 10.
Be3 {[%clk 01:03:11]} {[%emt 00:00:27]} Kh7 {[%clk 00:58:15]} {[%emt 00:18:31]}
11. O-O {[%clk 00:54:04]} {[%emt 00:09:37]} Bd7 {[%clk 00:54:43]} {[%emt
00:04:01]} 12. Bb3 {[%clk 00:52:30]} {[%emt 00:02:05]} Qe8 {[%clk 00:45:28]}
{[%emt 00:09:44]} 13. Re1 {[%clk 00:42:03]} {[%emt 00:10:57]} Nh5 {[%clk
00:41:09]} {[%emt 00:04:49]} 14. Nd5 {[%clk 00:41:01]} {[%emt 00:01:33]} Rc8
{[%clk 00:39:44]} {[%emt 00:01:53]} 15. d4 {[%clk 00:34:20]} {[%emt 00:07:12]}
b6 {[%clk 00:19:48]} {[%emt 00:20:26]} 16. g4 {[%clk 00:19:54]} {[%emt
00:14:55]} f5 {[%clk 00:08:39]} {[%emt 00:11:40]} 17. exf5 {[%clk 00:09:59]}
{[%emt 00:10:26]} e4 {[%clk 00:02:11]} {[%emt 00:06:58]} 18. Nh4 {[%clk
00:04:33]} {[%emt 00:05:56]} gxf5 {[%clk 00:01:19]} {[%emt 00:01:22]} 19. gxh5
{[%clk 00:04:54]} {[%emt 00:00:08]} f4 {[%clk 00:00:42]} {[%emt 00:01:07]} 20.
Nxf4 {[%clk 00:04:28]} {[%emt 00:00:56]} Nxd4 {[%clk 00:00:35]} {[%emt
00:00:37]} 21. Bxd4 {[%clk 00:03:46]} {[%emt 00:01:12]} Rxf4 {[%clk 00:00:50]}
{[%emt 00:00:14]} 22. Ng6 {[%clk 00:02:30]} {[%emt 00:01:46]} Rf5 {[%clk
00:00:46]} {[%emt 00:00:34]} 23. Bxg7 {[%clk 00:02:11]} {[%emt 00:00:49]} Kxg7
{[%clk 00:00:32]} {[%emt 00:00:45]} 24. Qd4+ {[%clk 00:02:30]} {[%emt
00:00:11]} Kh7 {[%clk 00:00:41]} {[%emt 00:00:21]} 25. Rxe4 {[%clk 00:01:15]}
{[%emt 00:01:45]} Rg5+ {[%clk 00:01:04]} {[%emt 00:00:07]} 26. Kh2 {[%clk
00:01:35]} {[%emt 00:00:10]} Rxh5 {[%clk 00:00:33]} {[%emt 00:01:01]} 27. Rxe8
{[%clk 00:01:21]} {[%emt 00:00:44]} Rxh3+ {[%clk 00:00:35]} {[%emt 00:00:27]}
28. Kg2 {[%clk 00:01:26]} {[%emt 00:00:25]} Rxe8 {[%clk 00:00:47]} {[%emt
00:00:18]} 29. Nf4 {[%clk 00:01:45]} {[%emt 00:00:10]} Rh4 {[%clk 00:01:04]}
{[%emt 00:00:14]} 30. Qd3+ {[%clk 00:02:03]} {[%emt 00:00:12]} 1-0

[Event "Tournoi de MI Clichy 92 2022"]
[Site "Clichy, France"]
[Date "2022.02.21"]
[Round "3.2"]
[White "Valles Moreno, Ivan"]
[Black "Decuigniere, Tom"]
[Result "1/2-1/2"]
[TimeControl "1H40 40 moves plus 30 minutes + 30 seconds from move one"]
[WhiteElo "2393"]
[BlackElo "2292"]

1. Nf3 {[%clk 01:27:30]} {[%emt 00:03:28]} c5 {[%clk 01:30:45]} {[%emt
00:00:17]} 2. c4 {[%clk 01:27:15]} {[%emt 00:00:45]} g6 {[%clk 01:30:47]}
{[%emt 00:00:29]} 3. d4 {[%clk 01:27:27]} {[%emt 00:00:16]} cxd4 {[%clk
01:31:03]} {[%emt 00:00:15]} 4. Nxd4 {[%clk 01:27:49]} {[%emt 00:00:07]} Nc6
{[%clk 01:31:18]} {[%emt 00:00:16]} 5. e4 {[%clk 01:28:12]} {[%emt 00:00:06]}
Nf6 {[%clk 01:31:16]} {[%emt 00:00:33]} 6. Nc3 {[%clk 01:28:34]} {[%emt
00:00:07]} d6 {[%clk 01:31:29]} {[%emt 00:00:19]} 7. Be2 {[%clk 01:28:56]}
{[%emt 00:00:07]} Nxd4 {[%clk 01:31:44]} {[%emt 00:00:16]} 8. Qxd4 {[%clk
01:29:17]} {[%emt 00:00:08]} Bg7 {[%clk 01:32:06]} {[%emt 00:00:09]} 9. Be3
{[%clk 01:27:07]} {[%emt 00:02:39]} O-O {[%clk 01:32:11]} {[%emt 00:00:26]} 10.
Qd2 {[%clk 01:27:14]} {[%emt 00:00:22]} a5 {[%clk 01:31:15]} {[%emt 00:01:28]}
11. O-O {[%clk 01:27:21]} {[%emt 00:00:22]} a4 {[%clk 01:30:27]} {[%emt
00:01:19]} 12. Rad1 {[%clk 01:27:20]} {[%emt 00:00:30]} Qa5 {[%clk 01:26:25]}
{[%emt 00:04:32]} 13. Bd4 {[%clk 01:24:36]} {[%emt 00:03:13]} Bd7 {[%clk
01:17:49]} {[%emt 00:09:07]} 14. Qe3 {[%clk 01:02:01]} {[%emt 00:23:04]} Ng4
{[%clk 01:06:22]} {[%emt 00:11:58]} 15. Qg3 {[%clk 00:56:20]} {[%emt 00:06:10]}
Bxd4 {[%clk 01:00:02]} {[%emt 00:06:51]} 16. Rxd4 {[%clk 00:51:30]} {[%emt
00:05:19]} Nf6 {[%clk 00:57:13]} {[%emt 00:03:21]} 17. Rfd1 {[%clk 00:43:16]}
{[%emt 00:08:42]} Bc6 {[%clk 00:49:50]} {[%emt 00:07:54]} 18. a3 {[%clk
00:35:27]} {[%emt 00:08:19]} Nd7 {[%clk 00:43:45]} {[%emt 00:06:35]} 19. Nd5
{[%clk 00:25:28]} {[%emt 00:10:27]} Bxd5 {[%clk 00:41:13]} {[%emt 00:03:03]} 20.
exd5 {[%clk 00:25:51]} {[%emt 00:00:06]} Qb6 {[%clk 00:40:54]} {[%emt
00:00:49]} 21. Qc3 {[%clk 00:13:43]} {[%emt 00:12:38]} Qc5 {[%clk 00:26:45]}
{[%emt 00:14:40]} 22. Qh3 {[%clk 00:09:53]} {[%emt 00:04:19]} Rfd8 {[%clk
00:22:39]} {[%emt 00:04:36]} 23. Qe3 {[%clk 00:07:27]} {[%emt 00:02:57]} Re8
{[%clk 00:21:43]} {[%emt 00:01:27]} 24. h4 {[%clk 00:07:31]} {[%emt 00:00:25]}
Nf6 {[%clk 00:16:58]} {[%emt 00:05:15]} 25. Bf3 {[%clk 00:06:43]} {[%emt
00:01:17]} h5 {[%clk 00:16:26]} {[%emt 00:01:03]} 26. Qg5 {[%clk 00:04:55]}
{[%emt 00:02:17]} Kg7 {[%clk 00:16:33]} {[%emt 00:00:23]} 27. Rf4 {[%clk
00:05:09]} {[%emt 00:00:15]} b5 {[%clk 00:14:04]} {[%emt 00:03:00]} 28. Re1
{[%clk 00:05:26]} {[%emt 00:00:13]} Nh7 {[%clk 00:12:48]} {[%emt 00:01:46]} 29.
Qg3 {[%clk 00:05:49]} {[%emt 00:00:06]} Nf6 {[%clk 00:12:45]} {[%emt 00:00:33]}
30. Qg5 {[%clk 00:05:01]} {[%emt 00:01:18]} Nh7 {[%clk 00:13:02]} {[%emt
00:00:14]} 31. Qg3 {[%clk 00:05:20]} {[%emt 00:00:10]} Nf6 {[%clk 00:13:15]}
{[%emt 00:00:17]} 1/2-1/2

[Event "Tournoi de MI Clichy 92 2022"]
[Site "Clichy, France"]
[Date "2022.02.21"]
[Round "3.3"]
[White "Sorbe, Stephane"]
[Black "Soham Das"]
[Result "1/2-1/2"]
[TimeControl "1H40 40 moves plus 30 minutes + 30 seconds from move one"]
[WhiteElo "2326"]
[BlackElo "2378"]

1. d4 {[%clk 01:30:54]} {[%emt 00:00:04]} f5 {[%clk 01:27:28]} {[%emt
00:03:33]} 2. Nf3 {[%clk 01:30:06]} {[%emt 00:01:18]} Nf6 {[%clk 01:27:47]}
{[%emt 00:00:11]} 3. g3 {[%clk 01:30:24]} {[%emt 00:00:11]} g6 {[%clk
01:28:14]} {[%emt 00:00:04]} 4. Bg2 {[%clk 01:30:49]} {[%emt 00:00:05]} Bg7
{[%clk 01:28:41]} {[%emt 00:00:03]} 5. O-O {[%clk 01:31:11]} {[%emt 00:00:07]}
O-O {[%clk 01:29:07]} {[%emt 00:00:05]} 6. c4 {[%clk 01:31:31]} {[%emt
00:00:10]} d6 {[%clk 01:29:34]} {[%emt 00:00:04]} 7. Nc3 {[%clk 01:31:56]}
{[%emt 00:00:05]} c6 {[%clk 01:29:59]} {[%emt 00:00:04]} 8. Rb1 {[%clk
01:31:54]} {[%emt 00:00:32]} Ne4 {[%clk 01:16:24]} {[%emt 00:14:05]} 9. Qc2
{[%clk 01:31:39]} {[%emt 00:00:45]} Nxc3 {[%clk 01:16:49]} {[%emt 00:00:06]} 10.
bxc3 {[%clk 01:32:03]} {[%emt 00:00:05]} h6 {[%clk 01:01:12]} {[%emt 00:16:07]}
11. Re1 {[%clk 01:27:33]} {[%emt 00:05:00]} g5 {[%clk 00:56:09]} {[%emt
00:05:33]} 12. h4 {[%clk 01:10:00]} {[%emt 00:18:03]} g4 {[%clk 00:51:21]}
{[%emt 00:05:18]} 13. Nh2 {[%clk 01:10:17]} {[%emt 00:00:12]} e5 {[%clk
00:51:18]} {[%emt 00:00:34]} 14. e3 {[%clk 00:57:09]} {[%emt 00:13:38]} e4
{[%clk 00:47:13]} {[%emt 00:04:35]} 15. Ba3 {[%clk 00:57:13]} {[%emt 00:00:26]}
Rf7 {[%clk 00:46:20]} {[%emt 00:01:23]} 16. Nf1 {[%clk 00:56:16]} {[%emt
00:01:28]} Be6 {[%clk 00:35:25]} {[%emt 00:11:22]} 1/2-1/2

[Event "Tournoi de MI Clichy 92 2022"]
[Site "Clichy, France"]
[Date "2022.02.21"]
[Round "3.4"]
[White "Mekhane, Adam"]
[Black "Onkoud, Abdelaziz"]
[Result "1-0"]
[TimeControl "1H40 40 moves plus 30 minutes + 30 seconds from move one"]
[WhiteElo "2316"]
[BlackElo "2317"]

1. e4 {[%clk 01:30:55]} {[%emt 00:00:04]} d6 {[%clk 01:30:41]} {[%emt
00:00:19]} 2. d4 {[%clk 01:31:10]} {[%emt 00:00:16]} g6 {[%clk 01:31:01]}
{[%emt 00:00:09]} 3. Nc3 {[%clk 01:31:23]} {[%emt 00:00:18]} Bg7 {[%clk
01:31:24]} {[%emt 00:00:06]} 4. Nf3 {[%clk 01:31:32]} {[%emt 00:00:22]} a6
{[%clk 01:31:17]} {[%emt 00:00:38]} 5. a4 {[%clk 01:20:42]} {[%emt 00:11:21]}
Bg4 {[%clk 01:23:40]} {[%emt 00:08:06]} 6. Be2 {[%clk 01:16:38]} {[%emt
00:04:35]} Nc6 {[%clk 01:23:19]} {[%emt 00:00:50]} 7. Be3 {[%clk 01:10:01]}
{[%emt 00:07:07]} Nf6 {[%clk 01:16:57]} {[%emt 00:06:51]} 8. d5 {[%clk
01:01:55]} {[%emt 00:08:36]} Nb8 {[%clk 01:11:39]} {[%emt 00:05:49]} 9. Qd2
{[%clk 00:57:49]} {[%emt 00:04:37]} Nbd7 {[%clk 01:05:54]} {[%emt 00:06:14]} 10.
O-O {[%clk 00:51:22]} {[%emt 00:06:56]} O-O {[%clk 01:05:15]} {[%emt 00:01:08]}
11. Bh6 {[%clk 00:45:34]} {[%emt 00:06:18]} Bxf3 {[%clk 00:58:56]} {[%emt
00:06:50]} 12. Bxf3 {[%clk 00:44:40]} {[%emt 00:01:25]} e5 {[%clk 00:59:10]}
{[%emt 00:00:16]} 13. a5 {[%emt 00:07:07]} Ne8 {[%clk 00:56:51]} {[%emt
00:02:41]} 14. Bxg7 {[%clk 00:33:20]} {[%emt 00:05:21]} Nxg7 {[%clk 00:56:45]}
{[%emt 00:00:35]} 15. Be2 {[%clk 00:30:11]} {[%emt 00:03:40]} f5 {[%clk
00:54:42]} {[%emt 00:02:32]} 16. f4 {[%clk 00:28:18]} {[%emt 00:02:24]} exf4
{[%clk 00:54:13]} {[%emt 00:00:59]} 17. Rxf4 {[%clk 00:21:59]} {[%emt
00:06:49]} g5 {[%clk 00:54:13]} {[%emt 00:00:30]} 18. Rf2 {[%clk 00:22:12]}
{[%emt 00:00:18]} f4 {[%clk 00:53:53]} {[%emt 00:00:49]} 19. g3 {[%clk
00:20:54]} {[%emt 00:01:49]} fxg3 {[%clk 00:50:41]} {[%emt 00:03:41]} 20. Rxf8+
{[%clk 00:20:58]} {[%emt 00:00:27]} Qxf8 {[%clk 00:45:46]} {[%emt 00:05:24]} 21.
hxg3 {[%clk 00:21:18]} {[%emt 00:00:10]} Qe7 {[%clk 00:46:06]} {[%emt
00:00:10]} 22. Rf1 {[%clk 00:18:32]} {[%emt 00:03:15]} Ne5 {[%clk 00:45:54]}
{[%emt 00:00:43]} 23. Kg2 {[%clk 00:18:39]} {[%emt 00:00:24]} Rf8 {[%clk
00:43:37]} {[%emt 00:02:46]} 24. Rxf8+ {[%clk 00:16:24]} {[%emt 00:02:46]} Kxf8
{[%clk 00:43:57]} {[%emt 00:00:10]} 25. Qe3 {[%clk 00:15:58]} {[%emt 00:00:55]}
h5 {[%clk 00:42:18]} {[%emt 00:02:08]} 26. Qa7 {[%clk 00:15:17]} {[%emt
00:01:13]} h4 {[%clk 00:42:26]} {[%emt 00:00:21]} 27. Qxb7 {[%clk 00:14:01]}
{[%emt 00:01:47]} hxg3 {[%clk 00:39:45]} {[%emt 00:03:11]} 28. Qxa6 {[%clk
00:11:46]} {[%emt 00:02:45]} Ng6 {[%clk 00:27:57]} {[%emt 00:12:17]} 29. Qc8+
{[%clk 00:10:28]} {[%emt 00:01:49]} Kf7 {[%clk 00:28:21]} {[%emt 00:00:06]} 30.
Qg4 {[%clk 00:08:15]} {[%emt 00:02:43]} Nf4+ {[%clk 00:21:16]} {[%emt
00:07:35]} 31. Kxg3 {[%clk 00:08:24]} {[%emt 00:00:22]} Qf6 {[%clk 00:20:40]}
{[%emt 00:01:06]} 32. a6 {[%clk 00:04:10]} {[%emt 00:04:44]} Qd4 {[%clk
00:11:00]} {[%emt 00:10:10]} 33. Kf3 {[%clk 00:04:32]} {[%emt 00:00:08]} Ng6
{[%clk 00:08:31]} {[%emt 00:02:59]} 34. Qxg5 {[%clk 00:03:58]} {[%emt
00:01:04]} Ne8 {[%clk 00:07:17]} {[%emt 00:01:43]} 35. Bd3 {[%clk 00:02:55]}
{[%emt 00:01:34]} Nf6 {[%clk 00:07:20]} {[%emt 00:00:27]} 36. Qe3 {[%clk
00:02:23]} {[%emt 00:01:02]} Qe5 {[%clk 00:07:25]} {[%emt 00:00:25]} 37. Ke2
{[%clk 00:02:01]} {[%emt 00:00:52]} Qh5+ {[%clk 00:03:57]} {[%emt 00:03:58]} 38.
Kd2 {[%clk 00:01:54]} {[%emt 00:00:37]} Qh1 {[%clk 00:03:37]} {[%emt 00:00:49]}
39. Be2 {[%clk 00:01:24]} {[%emt 00:01:01]} Qa1 {[%clk 00:03:19]} {[%emt
00:00:48]} 40. a7 {[%clk 00:01:12]} {[%emt 00:00:42]} Ne5 {[%clk 00:02:48]}
{[%emt 00:01:01]} 41. Qd4 {[%clk 00:29:14]} {[%emt 00:02:27]} Nfg4 {[%clk
00:31:51]} {[%emt 00:01:27]} 42. Na4 {[%clk 00:24:18]} {[%emt 00:05:28]} 1-0

[ePGN "0.1;DGT LiveChess/2.2.5"]